Cogmind - Beta 10.2 --- EXPLORER MODE // 2021.03.20 @ 16:41:14 Player: Analote Result: Destroyed by B-75 Beast with Heavy Machine Gun Performance ------------- Evolutions (4) 2000 Regions Visited (6) 1200 Robots Destroyed (110) 550 Value Destroyed (3183) 3183 Prototype IDs (2) 40 Alien Tech Used (0) 0 Bonus (-37) -37 TOTAL SCORE: 6936 Bonus ------- Follower Combat Kills 77 Friendly Fire -114 Cogmind --------- Core Integrity 0/850 Matter 300/300 Energy 100/100 System Corruption 2% Temperature Cool (0) Movement Core (300) Ox5 Location -6/Extension Parts ------- > --- POWER (1) -------- (None) > --- PROPULSION (4) --- (None) > --- UTILITY (7) ------ Large Storage Unit > --- WEAPON (4) ------- (None) > --- INVENTORY (10) --- Deuterium Engine Improved Heat Sink High-capacity Matter Pod (200) Advanced Terrain Scanner Weapon Shielding High-powered Tractor Beam High-powered Tractor Beam Field Recycling Unit (20) Peak State ------------ > --- POWER ------------ Improved Deuterium Engine > --- PROPULSION ------- Advanced Treads Medium Treads Medium Treads Medium Treads > --- UTILITY ---------- Improved Heat Sink Large Storage Unit Matter Filter Kinecellerator Hardened Heavy Armor Plating Improved Light Armor Plating > --- WEAPON ----------- Minigun High-powered Shotgun Enhanced Autogun Enhanced Autogun > --- INVENTORY -------- Deuterium Engine High-capacity Matter Pod Advanced Terrain Scanner Weapon Shielding High-powered Tractor Beam High-powered Tractor Beam Field Recycling Unit Advanced EMP Blaster [Rating: 57] Favorites ----------- Power Light Angular Momentum Engine Engine Light Angular Momentum Engine Power Core Light Nuclear Core Propulsion Medium Treads Treads Medium Treads Utility Large Storage Unit Device Improved Heat Sink Storage Large Storage Unit Processor Transport Network Coupler Protection Improved Light Armor Plating Weapon Enhanced Autogun Energy Gun EM Pulse Gun Ballistic Gun Enhanced Autogun Launcher Advanced EMP Blaster Build | -11 -10 -9 -8 -7 -6 -6 ------- Run | Scr Mat Mat Mat Fac Fac Ext Slots Evolved 9 | . 1 2 2 2 2 . Power . | . . . . . . . Propulsion 2 | . . . 2 . . . Utility 5 | . 1 2 . . 2 . Weapon 2 | . . . . 2 . . Parts Attached 55 | 7 8 10 16 10 2 2 Power 8 | 1 1 1 2 3 . . Engine 6 | 1 . 1 2 2 . . Core 2 | . 1 . . 1 . . Reactor . | . . . . . . . Propulsion 12 | 2 . 4 3 3 . . Treads 12 | 2 . 4 3 3 . . Leg . | . . . . . . . Wheel . | . . . . . . . Hover . | . . . . . . . Flight . | . . . . . . . Utility 17 | 2 3 5 4 1 2 . Device 8 | . . 3 3 1 1 . Storage 2 | 1 1 . . . . . Processor 1 | . 1 . . . . . Hackware . | . . . . . . . Protection 6 | 1 1 2 1 . 1 . Artifact . | . . . . . . . Weapon 18 | 2 4 . 7 3 . 2 Energy Gun 2 | 1 . . . . . 1 Energy Cannon . | . . . . . . . Ballistic Gun 14 | 1 4 . 6 3 . . Ballistic Cannon . | . . . . . . . Launcher 2 | . . . 1 . . 1 Special Weapon . | . . . . . . . Impact Weapon . | . . . . . . . Slashing Weapon . | . . . . . . . Piercing Weapon . | . . . . . . . Special Melee Weapon . | . . . . . . . Unidentified Prototypes 2 | . . . 2 . . . Parts Lost 18 | . . 1 . 1 . 16 Power 2 | . . . . 1 . 1 Propulsion 4 | . . . . . . 4 Utility 6 | . . 1 . . . 5 Weapon 6 | . . . . . . 6 Highest Loss Streak 14 | . . 1 . 1 . 14 Average Slot Usage (%) 85 | . 98 98 99 99 92 33 Engine 5 | . 7 5 7 5 6 1 Core 1 | . 4 4 . 1 . . Treads 23 | . 25 20 33 28 25 8 Device 13 | . . 10 16 20 17 5 Storage 7 | . 12 10 8 7 6 6 Processor 1 | . 7 9 . . . . Protection 10 | . 16 18 15 7 12 3 Ballistic Gun 20 | . 23 20 15 28 25 7 Naked Turns . | . . . . . . . Heaviest Build 69 | 19 28 40 44 49 69 69 Greatest Support 106 | 40 40 46 88 106 106 106 Greatest Overweight (x) 7 | . . . . . . 7 Average Overweight (x) . | . . . . . . 2 Largest Inventory Capacity 10 | 8 10 10 10 10 10 10 Average Capacity 9 | 6 8 10 10 10 10 10 Most Carried 10 | 3 7 9 10 10 9 8 Average Carried 7 | 1 3 4 6 9 8 7 Final Capacity 10 | 8 10 10 10 10 10 10 Final Carried 10 | 2 6 7 9 10 8 8 Class Distribution -------------------- 51% | Hacker-Mutant 38% | Hacker-Gunner 10% | Hacker-Tank Dominant Class ---------------- Hacker-Mutant | -10/Materials Hacker-Mutant | -9/Materials Hacker-Mutant | -8/Materials Hacker-Gunner | -7/Factory Hacker-Tank | -6/Factory Hacker-Mutant | -6/Extension Resources | -11 -10 -9 -8 -7 -6 -6 ----------- Run | Scr Mat Mat Mat Fac Fac Ext Matter Collected 3033 | 262 507 665 592 647 82 278 Remotely . | . . . . . . . Salvage Created 4386 | . 494 1139 915 1069 272 497 Parts 246 | . 30 72 57 57 10 20 Haulers Intercepted 13 | . 2 4 4 2 . 1 Recyclers Shooed . | . . . . . . . Parts Field Recycled 3 | . . 3 . . . . Retrieved Matter 34 | . . 34 . . . . Parts Self-Destructed . | . . . . . . . Prevented . | . . . . . . . Kills | -11 -10 -9 -8 -7 -6 -6 ------- Run | Scr Mat Mat Mat Fac Fac Ext Combat Hostiles Destroyed 67 | . 9 17 15 18 4 4 Guns 67 | . 9 17 15 18 4 4 Classes Destroyed 12 | . 4 4 2 2 . . Worker 4 | . . 2 . 1 1 . Builder 5 | . . . 1 2 . 2 Hauler 13 | . 2 4 4 2 . 1 Recycler 1 | . . 1 . . . . Operator 2 | . . . . 1 1 . Watcher 17 | . 3 4 3 5 . 2 Swarmer 13 | . 2 . 5 6 . . Grunt 31 | . 7 12 3 4 3 2 Brawler 4 | . . 1 . 1 1 1 Duelist 1 | . . . 1 . . . Sentry 15 | . . 4 6 4 . 1 Programmer 3 | . . . . 3 . . Butcher 1 | . . . . . . 1 Best Kill Streak 11 | . 6 11 8 5 5 8 Combat Bots Only 7 | . 3 7 4 3 4 3 Max Kills in Single Turn 2 | . 1 2 1 2 2 2 Gunslinging 1 | . . 1 . . . . Exploded . | . . . . . . . Melee . | . . . . . . . Uniques/NPCs Destroyed . | . . . . . . . Combat | -11 -10 -9 -8 -7 -6 -6 -------- Run | Scr Mat Mat Mat Fac Fac Ext Damage Taken 4535 | . 220 503 396 570 58 2788 Core 1091 | . 47 108 50 24 13 849 Absorbed by Shields . | . . . . . . . Core Remaining (%) 88 | 100 81 73 90 96 . . Volleys Fired 251 | . 34 68 61 56 11 21 Largest 4 | . 2 2 2 4 4 4 Hottest 141 | . 46 46 50 100 100 141 Shots Fired 647 | . 68 136 122 210 40 71 Gun 643 | . 68 136 122 210 40 67 Cannon . | . . . . . . . Launcher 4 | . . . . . . 4 Special . | . . . . . . . Kinetic 642 | . 68 136 122 210 40 66 Thermal 1 | . . . . . . 1 Explosive . | . . . . . . . Electromagnetic 4 | . . . . . . 4 Robot Hit Streak 42 | . 21 42 17 17 36 25 Robot Miss Streak 3 | . 1 1 2 3 1 2 Penetration Max . | . . . . . . . Secondary Targets 21 | . 3 6 1 5 2 4 Max Gunslinging Chain 1 | . 1 1 1 1 1 1 Shots Hit Robots 512 | . 57 109 100 151 32 63 Core Hits 209 | . 20 45 42 55 14 33 Critical Hits 2 | . . . . . 1 1 Critical Kills 1 | . . . . . . 1 Critical Parts Destroyed 1 | . . . . . 1 . Melee Attacks . | . . . . . . . Impact . | . . . . . . . Slashing . | . . . . . . . Piercing . | . . . . . . . Sneak Attacks . | . . . . . . . Combat Hostiles . | . . . . . . . Follow-up Attacks . | . . . . . . . Damage Inflicted 9496 | . 817 1784 1542 2830 734 1789 Guns 8744 | . 817 1532 1542 2830 734 1289 Cannons . | . . . . . . . Explosions 738 | . . 252 . . . 486 Melee . | . . . . . . . Ramming 14 | . . . . . . 14 Kinetic 8710 | . 817 1532 1542 2830 734 1255 Thermal 241 | . . . . . . 241 Explosive 252 | . . 252 . . . . Electromagnetic 279 | . . . . . . 279 Impact . | . . . . . . . Slashing . | . . . . . . . Piercing . | . . . . . . . Highest Corruption 2 | . . . 1 1 . 2 Average Corruption 1 | . . . 1 1 . 2 Corruption Purged . | . . . . . . . Effects 16 | . . . 2 7 . 7 Message Errors 8 | . . . 1 3 . 4 Energy Discharges 3 | . . . . 2 . 1 Data Loss (minor) 3 | . . . 1 . . 2 Targeting Errors 2 | . . . . 2 . . Overload Shots . | . . . . . . . Overflow Damage 6 | . . . . . . 6 Projectiles . | . . . . . . . Explosions 6 | . . . . . . 6 Melee . | . . . . . . . Knockbacks 1 | . . . . . . 1 Impact 1 | . . . . . . 1 Kinetic . | . . . . . . . Secondary . | . . . . . . . Self-Inflicted Damage 196 | . . 137 . . . 59 Shots 6 | . . 2 . . . 4 Rammed 7 | . . . . . . 7 Targets Rammed 7 | . . . . . . 7 Kicked . | . . . . . . . Crushed . | . . . . . . . Highest Temperature 418 | . 59 21 . 138 148 418 Average Temperature 68 | . 16 4 . 35 54 198 Received Heat Transfer 1758 | . 120 279 216 108 45 990 Effects 2 | . . . . . . 2 Energy Bleed 2 | . . . . . . 2 Siege Activations . | . . . . . . . Robots Corrupted . | . . . . . . . Combat Hostiles . | . . . . . . . Parts Fried . | . . . . . . . Impact Corruptions . | . . . . . . . Robots Melted . | . . . . . . . Combat Hostiles . | . . . . . . . Parts Melted . | . . . . . . . Heat Transferred 325 | . . . . . . 325 Parts Sabotaged . | . . . . . . . Parts Stolen . | . . . . . . . Parts Stripped . | . . . . . . . Power Chain Reactions 5 | . . . . . . 5 Missiles Intercepted . | . . . . . . . Alert | -11 -10 -9 -8 -7 -6 -6 ------- Run | Scr Mat Mat Mat Fac Fac Ext Peak Influence 396 | . 260 396 365 190 175 197 Initial 120 | . . . 74 120 61 63 Average 93 | . 77 159 189 74 94 43 Maximum Alert Level 1 | . 1 1 1 . . . Low Security (%) 88 | 100 83 69 51 100 100 100 Level 1 11 | . 16 30 48 . . . Level 2 . | . . . . . . . Level 3 . | . . . . . . . Level 4 . | . . . . . . . Level 5 . | . . . . . . . High Security . | . . . . . . . Max Security . | . . . . . . . Squads Dispatched 13 | . . 2 3 6 1 1 Investigation 2 | . . . 1 1 . . Extermination 4 | . . . . 4 . . Reinforcement 6 | . . 2 1 1 1 1 Assault . | . . . . . . . Garrison 1 | . . . 1 . . . Intercept . | . . . . . . . Construction Impeded 1 | . . . . . . 1 Haulers Reinforced . | . . . . . . . Stealth | -11 -10 -9 -8 -7 -6 -6 --------- Run | Scr Mat Mat Mat Fac Fac Ext Distress Signals 6 | . 2 2 . . 1 1 Communications Jammed . | . . . . . . . Distress Signals . | . . . . . . . Times Spotted 111 | . 11 25 25 28 5 17 Peak Tracking Total 8 | . 3 4 4 3 2 8 Tactical Retreats 7 | . . . 2 1 . 4 Traps | -11 -10 -9 -8 -7 -6 -6 ------- Run | Scr Mat Mat Mat Fac Fac Ext Traps Triggered 9 | . 4 . 2 2 1 . Indirectly . | . . . . . . . Trap Hack Attempts . | . . . . . . . Triggered . | . . . . . . . Disarmed . | . . . . . . . Reprogrammed . | . . . . . . . Reused . | . . . . . . . Traps Extracted . | . . . . . . . Installed . | . . . . . . . Triggered . | . . . . . . . Machines | -11 -10 -9 -8 -7 -6 -6 ---------- Run | Scr Mat Mat Mat Fac Fac Ext Machines Disabled 7 | . . 5 . . 1 1 Max in Single Turn 3 | . . 3 . . 1 1 Garrison Access 1 | . . . . 1 . . Machines Sabotaged . | . . . . . . . Garrisons Compromised . | . . . . . . . Overloaded Fab Kills . | . . . . . . . Fab Network Shutdowns . | . . . . . . . Hacking | -11 -10 -9 -8 -7 -6 -6 --------- Run | Scr Mat Mat Mat Fac Fac Ext Machines Accessed 6 | . . . 1 2 . 3 Terminals 4 | . . . . 1 . 3 Fabricators . | . . . . . . . Repair Stations 1 | . . . 1 . . . Recycling Units . | . . . . . . . Scanalyzers . | . . . . . . . Garrison Access 1 | . . . . 1 . . Total Hacks 11 | . . . 4 3 . 4 Successful 8 | . . . 3 1 . 4 Failed 3 | . . . 1 2 . . Catastrophic 1 | . . . . 1 . . Database Lockouts . | . . . . . . . Manual . | . . . . . . . Terminals 6 | . . . . 2 . 4 Fabricators . | . . . . . . . Repair Stations 4 | . . . 4 . . . Recycling Units . | . . . . . . . Scanalyzers . | . . . . . . . Garrison Access 1 | . . . . 1 . . Terminal Hacks 4 | . . . . . . 4 Record 2 | . . . . . . 2 Open Door 2 | . . . . . . 2 Fabricator Hacks . | . . . . . . . Repair Station Hacks 3 | . . . 3 . . . Scan Component 2 | . . . 2 . . . Repair 1 | . . . 1 . . . Recycling Unit Hacks . | . . . . . . . Scanalyzer . | . . . . . . . Garrison Access Hacks 1 | . . . . 1 . . Seal Access 1 | . . . . 1 . . Unauthorized Hacks . | . . . . . . . Terminals . | . . . . . . . Fabricators . | . . . . . . . Repair Stations . | . . . . . . . Recycling Units . | . . . . . . . Scanalyzers . | . . . . . . . Garrison Access . | . . . . . . . Data Cores Recovered 1 | . . . . 1 . . Used . | . . . . . . . Hacking Detections 3 | . . . 1 1 . 1 Full Trace Events 2 | . . . 1 1 . . Feedback Events . | . . . . . . . Feedback Blocked . | . . . . . . . Robot Schematics Acquired . | . . . . . . . Robots Built . | . . . . . . . Matter . | . . . . . . . Time . | . . . . . . . Total Robot Build Rating . | . . . . . . . Part Schematics Acquired . | . . . . . . . Parts Built . | . . . . . . . Matter . | . . . . . . . Time . | . . . . . . . Total Part Build Rating . | . . . . . . . Parts Repaired 1 | . . . 1 . . . Time 32 | . . . 32 . . . Parts Recycled . | . . . . . . . Recycled Matter . | . . . . . . . Retrieved Matter . | . . . . . . . Retrieved Components . | . . . . . . . Parts Scanalyzed . | . . . . . . . Part Schematics Acquired . | . . . . . . . Parts Damaged . | . . . . . . . Bothacking | -11 -10 -9 -8 -7 -6 -6 ------------ Run | Scr Mat Mat Mat Fac Fac Ext Used RIF Installer . | . . . . . . . Robots Hacked . | . . . . . . . Non-combat . | . . . . . . . Combat . | . . . . . . . Robot Hacks Applied . | . . . . . . . Relay Couplers Released . | . . . . . . . Robots Rewired . | . . . . . . . Allies Hacked . | . . . . . . . Hacks Repelled . | . . . . . . . Allies | -11 -10 -9 -8 -7 -6 -6 -------- Run | Scr Mat Mat Mat Fac Fac Ext Total Allies 3 | . . . . . . 3 Largest Group 2 | . . . . . . 2 Highest-Rated Group 62 | . . . . . . 62 Highest-Rated Ally 37 | . . . . . . 37 Total Orders . | . . . . . . . Ally Attacks 18 | . . . . . . 18 Total Damage 355 | . . . . . . 355 Kills 3 | . . . . . . 3 Allies Corrupted . | . . . . . . . Allies Melted . | . . . . . . . Intel | -11 -10 -9 -8 -7 -6 -6 ------- Run | Scr Mat Mat Mat Fac Fac Ext Robot Analysis Total . | . . . . . . . Derelict Logs Recovered . | . . . . . . . Drone Launches . | . . . . . . . Drone Recoveries . | . . . . . . . Exploration | -11 -10 -9 -8 -7 -6 -6 ------------- Run | Scr Mat Mat Mat Fac Fac Ext Turns Passed 5798 | 93 550 742 739 2284 188 1202 Spaces Moved 2854 | 53 272 345 329 1262 102 491 Core 241 | 6 . . . . . 235 Treads 2613 | 47 272 345 329 1262 102 256 Legs . | . . . . . . . Wheels . | . . . . . . . Hover . | . . . . . . . Flight . | . . . . . . . Fastest Speed 50 | 50 160 145 145 145 156 155 Average Speed 166 | 147 160 156 145 154 156 225 Slowest Speed 400 | 160 160 160 145 156 156 400 Overloaded Moves . | . . . . . . . Propulsion Burnouts . | . . . . . . . Robots Hopped . | . . . . . . . Cave-ins Triggered . | . . . . . . . Exploration Rate (%) 32 | 3 63 40 35 40 5 44 Regions Visited 6 Branch Regions 1 Pre-discovered Areas . | . . . . . . . Known Exits Taken 6 | 1 1 1 1 1 1 . Unknown Exits Taken . | . . . . . . . Scrap Searched . | . . . . . . . Spaces Dug . | . . . . . . . Terrain Destroyed 45 | . . 41 . . . 4 Melee . | . . . . . . . Projectile . | . . . . . . . AOE 45 | . . 41 . . . 4 Terrain Rammed . | . . . . . . . Walls Destroyed . | . . . . . . . Machines Disabled . | . . . . . . . Actions | -11 -10 -9 -8 -7 -6 -6 --------- Run | Scr Mat Mat Mat Fac Fac Ext Total 3517 | 68 333 438 498 1521 115 544 Wait 281 | . 5 3 77 175 . 21 Move 2848 | 52 271 344 328 1261 101 491 Hop . | . . . . . . . Pick Up 55 | 9 11 9 12 11 1 2 Fast Attach . | . . . . . . . Attach 28 | 7 5 3 6 3 2 2 Detach . | . . . . . . . Swap 27 | . 3 7 10 7 . . Drop 20 | . 4 4 4 8 . . Fire 251 | . 34 68 61 56 11 21 Melee . | . . . . . . . Ram 6 | . . . . . . 6 Kick . | . . . . . . . Crush 1 | . . . . . . 1 Escape Stasis . | . . . . . . . Rewire . | . . . . . . . Trap . | . . . . . . . Miscellaneous . | . . . . . . . Route ------- -11/Scrapyard -10/Materials (discovered 2 exits: *Mat / *Min) -9/Materials (discovered 4 exits: *Mat / *Min / *Sto x2) -8/Materials -7/Factory -6/Factory -6/Extension History --------- Turn | Location | Event 11 | -11/Scrapyard | Identified exit to Materials 11 | -11/Scrapyard | Discovered exit to Materials (range 14) 94 | -11/Scrapyard | Entered Materials 94 | -10/Materials | Evolved 1 slot: Utility x1 320 | -10/Materials | Build established: Hacker-Mutant 461 | -10/Materials | Identified exit to Mines 461 | -10/Materials | Discovered exit to Mines (range 15) 592 | -10/Materials | Identified exit to Materials 592 | -10/Materials | Discovered exit to Materials (range 8) 644 | -10/Materials | Entered another Materials area 644 | -9/Materials | Evolved 2 slots: Utility x2 772 | -9/Materials | Identified exit to Storage 772 | -9/Materials | Discovered exit to Storage (range 16) 960 | -9/Materials | Discovered exit to Storage (range 13) 992 | -9/Materials | Destroyed 7 combat bots 1103 | -9/Materials | Identified exit to Mines 1103 | -9/Materials | Discovered exit to Mines (range 9) 1341 | -9/Materials | Identified exit to Materials 1341 | -9/Materials | Discovered exit to Materials (range 15) 1386 | -9/Materials | Entered another Materials area 1386 | -8/Materials | Evolved 2 slots: Propulsion x2 1543 | -8/Materials | Repaired Autogun 1834 | -8/Materials | Garrison activated, responded to threat 2094 | -8/Materials | Identified exit to Factory 2094 | -8/Materials | Discovered exit to Factory (range 15) 2125 | -8/Materials | Entered Factory 2125 | -7/Factory | Evolved 2 slots: Weapon x2 2465 | -7/Factory | Build established: Hacker-Gunner 4393 | -7/Factory | Identified exit to Factory 4393 | -7/Factory | Discovered exit to Factory (range 6) 4409 | -7/Factory | Entered another Factory area 4409 | -6/Factory | Evolved 2 slots: Utility x2 4575 | -6/Factory | Identified exit to Extension 4575 | -6/Factory | Discovered exit to Extension (range 15) 4597 | -6/Factory | Entered Extension 4708 | -6/Extension | Rescued a captive Derelict 4709 | -6/Extension | Rescued a captive Derelict 4712 | -6/Extension | Build established: Hacker-Tank 4843 | -6/Extension | Rescued a captive Derelict 4900 | -6/Extension | Spotted B-75 Beast 4909 | -6/Extension | Spotted B-75 Beast 5013 | -6/Extension | Lost 14 parts (1p3n5u5w) 5124 | -6/Extension | Core integrity fell below 50% 5246 | -6/Extension | Build established: Hacker-Mutant 5783 | -6/Extension | Core integrity fell below 20% 5799 | -6/Extension | Destroyed by B-75 Beast with Heavy Machine Gun Last Messages --------------- 05081_ Slammed into Y-54 Guardian. 05090_ Destabilizing: System corrupted (+2). 05093_ Slammed into Y-54 Guardian. 05141_ CVZMSCKRC MNZAPU58F,H:|B0FWYHECEB%S 05399_ System corrupted: Component data lost. 05521_ R-10 Processor enters Transfer Station. 05538_ K-01 Serf exits Transfer Station. 05538_ U-05 Engineer exits Transfer Station. 05538_ R-10 Processor enters Transfer Station. 05560_ K-01 Serf exits Transfer Station. 05560_ A-15 Conveyor exits Transfer Station. 05569_ UU4ACA XTWC4DNVUH45NJL9